fUST/lending_fUST_20251119
["ID","MTS","AMOUNT","RATE_DAILY","PERIOD"]
[394386762,1763516369499,366.02672016,0.00039723,30]
[394386763,1763516375852,500.0,0.00039723,30]
[394386764,1763516376149,500.0,0.00039723,30]
[394386765,1763516376455,500.0,0.00039723,30]
[394386766,1763516377072,516.99309819,0.00039723,30]
[394386767,1763516381929,1476.77,0.00039723,30]
[394386768,1763516382184,1476.77,0.00039723,30]
[394386769,1763516382425,1476.77,0.00039723,30]
[394386770,1763516382664,1476.77,0.00039723,30]
[394386772,1763516382900,1476.77,0.00039723,30]
[394386773,1763516383225,1476.77,0.00039723,30]
[394386774,1763516383522,1476.77,0.00039723,30]
[394386775,1763516383761,1476.77,0.00039723,30]
[394386776,1763516384106,1476.77,0.00039723,30]
[394386777,1763516384345,1476.77,0.00039723,30]
[394386778,1763516384588,1476.77,0.00039723,120]
[394386779,1763516384838,1476.77,0.00039723,120]
[394386780,1763516385105,1476.77,0.00039723,120]
[394386781,1763516385353,1476.77,0.00039723,120]
[394386782,1763516385670,1476.77,0.00039723,120]
[394386783,1763516386040,1476.77,0.00039723,120]
[394386784,1763516386302,1476.77,0.00039723,120]
[394386785,1763516386535,1476.77,0.00039723,120]
[394386786,1763516386780,1476.77,0.00039723,120]
[394386787,1763516387174,1476.77,0.00039723,120]
[394386788,1763516387536,1476.77,0.00039723,120]
[394386789,1763516387880,1476.77,0.00039723,120]
[394386790,1763516388134,1476.77,0.00039723,120]
[394386791,1763516388375,1476.9903638,0.00039723,120]
[394386792,1763516391727,521.4012891,0.00039723,30]
[394386793,1763516401566,500.0,0.00039723,30]
[394386794,1763516401803,500.0,0.00039723,30]
[394386795,1763516402056,500.0,0.00039723,30]
[394386796,1763516402456,500.0,0.00039723,30]
[394386797,1763516402756,500.0,0.00039723,30]
[394386798,1763516403013,500.0,0.00039723,30]
[394386799,1763516403263,500.0,0.00039723,30]
[394386800,1763516403517,500.0,0.00039723,30]
[394386801,1763516403843,500.58302904,0.00039723,30]
[394386802,1763516404940,500.0,0.00039723,30]
[394386803,1763516405194,500.0,0.00039723,30]
[394386804,1763516405439,500.0,0.00039723,30]
[394386805,1763516405881,500.0,0.00039723,30]
[394386806,1763516406055,534.83137519,0.00039723,30]
[394386807,1763516406123,500.0,0.00039723,30]
[394386808,1763516406391,500.0,0.00039723,30]
[394386809,1763516406664,500.0,0.00039723,30]
[394386810,1763516407304,500.0,0.00039723,30]
[394386811,1763516407599,500.0,0.00039723,30]
[394386812,1763516407933,500.0,0.00039723,30]
[394386813,1763516408183,500.0,0.00039723,120]
[394386814,1763516408426,500.0,0.00039723,120]
[394386815,1763516408845,500.0,0.00039723,120]
[394386816,1763516409322,350.48787221,0.00039723,120]
[394386819,1763516414251,500.0,0.00039723,30]
[394386820,1763516414516,500.0,0.00039723,30]
[394386821,1763516414733,500.0,0.00039723,30]
[394386822,1763516415009,500.0,0.00039723,30]
[394386823,1763516415330,500.0,0.00039723,30]
[394386824,1763516415622,500.0,0.00039723,30]
[394386825,1763516415886,500.0,0.00039723,30]
[394386826,1763516416153,500.0,0.00039723,30]
[394386827,1763516416389,575.92316918,0.00039723,30]
[394386828,1763516433283,500.0,0.00039723,30]
[394386829,1763516433548,294.19555314,0.00039723,30]
[394386830,1763516439989,500.0,0.00039723,30]
[394386831,1763516440444,500.0,0.00039723,30]
[394386833,1763516441230,500.0,0.00039723,30]
[394386834,1763516441481,500.0,0.00039723,30]
[394386835,1763516441737,500.0,0.00039723,30]
[394386836,1763516441986,500.0,0.00039723,30]
[394386837,1763516442584,500.0,0.00039723,30]
[394386838,1763516442960,500.0,0.00039723,30]
[394386839,1763516443056,500.0,0.00039723,30]
[394386840,1763516443327,500.0,0.00039723,30]
[394386841,1763516443569,500.0,0.00039723,120]
[394386842,1763516443817,500.0,0.00039723,120]
[394386843,1763516444051,500.0,0.00039723,120]
[394386844,1763516444374,500.0,0.00039723,120]
[394386845,1763516444612,500.0,0.00039723,120]
[394386846,1763516444845,500.0,0.00039723,120]
[394386847,1763516445185,500.0,0.00039723,120]
[394386848,1763516445859,500.0,0.00039723,120]
[394386849,1763516446093,500.0,0.00039723,120]
[394386850,1763516446342,500.0,0.00039723,120]
[394386851,1763516446676,500.0,0.00039723,120]
[394386852,1763516447315,566.75974442,0.00039723,120]
[394386853,1763516455810,500.0,0.00039723,30]
[394386854,1763516456458,500.0,0.00039723,30]
[394386855,1763516456723,500.0,0.00039723,30]
[394386856,1763516456956,500.0,0.00039723,30]
[394386857,1763516457313,500.0,0.00039723,30]
[394386858,1763516457546,500.0,0.00039723,30]
[394386859,1763516457775,500.0,0.00039723,30]
[394386860,1763516458001,206.59409581,0.00039723,30]
[394386861,1763516467162,500.0,0.00039723,30]
[394386862,1763516467395,500.0,0.00039723,30]
[394386863,1763516467633,500.0,0.00039723,30]
[394386864,1763516467893,500.0,0.00039723,30]
[394386865,1763516468140,500.0,0.00039723,30]
[394386866,1763516468377,500.0,0.00039723,30]
[394386867,1763516468646,311.02348486,0.00039723,30]
[394386868,1763516480391,237.27583553,0.00039723,30]
[394386869,1763516482643,508.87122434,0.00039723,30]
[394386870,1763516486184,523.50933577,0.00039723,30]
[394386871,1763516490480,3218.54596205,0.0001598,3]
[394386872,1763516493782,1033.36,0.0001588,3]
[394386873,1763516495585,508.18312542,0.00039723,30]
[394386874,1763516499896,511.11978211,0.00039723,30]
[394386875,1763516502472,504.26296784,0.00039723,30]
[394386876,1763516503469,521.53568064,0.00039723,30]
[394386877,1763516504516,516.68,0.0001588,3]
[394386878,1763516506129,336.50315674,0.00039723,30]
[394386879,1763516510855,546.13904815,0.00039723,30]
[394386880,1763516511675,500.0,0.00039723,30]
[394386881,1763516511904,500.0,0.00039723,30]
[394386882,1763516512153,500.0,0.00039723,30]
[394386883,1763516512417,500.0,0.00039723,30]
[394386884,1763516512657,500.0,0.00039723,30]
[394386885,1763516512923,500.0,0.00039723,30]
[394386886,1763516513168,500.0,0.00039723,30]
[394386887,1763516513480,429.13422299,0.00039723,30]
[394386888,1763516515171,258.34,0.0001588,3]
[394386889,1763516515274,593.1521495,0.00039723,30]
[394386890,1763516526069,775.04,0.0001588,3]
[394386891,1763516528747,1136.86,0.00039723,30]
[394386892,1763516528968,1136.86,0.00039723,30]
[394386893,1763516529310,1136.86,0.00039723,30]
[394386894,1763516529550,1136.86,0.00039723,30]
[394386895,1763516529791,1136.86,0.00039723,30]
[394386896,1763516530022,1136.86,0.00039723,30]
[394386897,1763516530301,1136.86,0.00039723,30]
[394386898,1763516530572,1136.86,0.00039723,30]
[394386899,1763516530815,1136.86,0.00039723,30]
[394386900,1763516531066,1136.86,0.00039723,30]
[394386901,1763516531325,1136.86,0.00039723,120]
[394386902,1763516531726,1136.86,0.00039723,120]
[394386903,1763516532007,1136.86,0.00039723,120]
[394386904,1763516532283,1136.86,0.00039723,120]
[394386905,1763516532514,1136.86,0.00039723,120]
[394386906,1763516532755,1136.86,0.00039723,120]
[394386907,1763516533014,1136.86,0.00039723,120]
[394386908,1763516533610,1136.86,0.00039723,120]
[394386909,1763516533860,1136.86,0.00039723,120]
[394386910,1763516534104,1136.86,0.00039723,120]
[394386911,1763516534345,1136.86,0.00039723,120]
[394386912,1763516534611,1136.86,0.00039723,120]
[394386913,1763516534855,1136.86,0.00039723,120]
[394386914,1763516535025,551.7886596,0.00039723,30]
[394386915,1763516535117,1137.02153951,0.00039723,120]
[394386916,1763516549103,521.37582171,0.00039723,30]
[394386917,1763516558465,522.00115861,0.00039723,30]
[394386918,1763516558504,522.90803527,0.00039723,30]
[394386919,1763516564079,500.0,0.00039723,30]
[394386920,1763516564319,402.67850157,0.00039723,30]
[394386922,1763516572648,500.0,0.00039723,30]
[394386923,1763516572895,461.25590099,0.00039723,30]
[394386924,1763516577077,622.49,0.00039723,30]
[394386925,1763516577317,622.49,0.00039723,30]
[394386926,1763516577554,622.49,0.00039723,30]
[394386927,1763516577794,622.49,0.00039723,30]
[394386928,1763516578228,622.49,0.00039723,30]
[394386929,1763516579129,622.49,0.00039723,30]
[394386930,1763516579369,622.49,0.00039723,30]
[394386931,1763516579726,622.49,0.00039723,30]
[394386932,1763516580135,622.49,0.00039723,30]
[394386933,1763516580433,622.49,0.00039723,30]
[394386934,1763516580589,939.57,0.00039723,30]
[394386935,1763516580777,622.49,0.00039723,30]
[394386936,1763516580815,939.57,0.00039723,30]
[394386937,1763516581016,622.49,0.00039723,30]
[394386938,1763516581163,939.57,0.00039723,30]
[394386939,1763516581268,622.49,0.00039723,30]
[394386940,1763516581527,622.49,0.00039723,30]
[394386941,1763516581775,622.49,0.00039723,30]
[394386942,1763516581929,939.57,0.00039723,30]
[394386943,1763516582021,622.49,0.00039723,30]
[394386944,1763516582199,939.57,0.00039723,30]
[394386945,1763516582329,622.49,0.00039723,30]
[394386946,1763516582458,939.57,0.00039723,30]
[394386947,1763516582596,622.49,0.00039723,30]
[394386948,1763516582757,939.57,0.00039723,30]
[394386949,1763516582987,939.57,0.00039723,30]
[394386950,1763516583297,622.49,0.00039723,30]
[394386951,1763516583876,622.49,0.00039723,30]
[394386952,1763516584132,622.49,0.00039723,30]
[394386953,1763516584614,939.57,0.00039723,30]
[394386954,1763516584814,622.49,0.00039723,30]
[394386955,1763516584898,939.57,0.00039723,30]
[394386956,1763516585073,622.49,0.00039723,30]
[394386957,1763516585185,939.57,0.00039723,120]
[394386958,1763516585479,622.56406508,0.00039723,30]
[394386959,1763516585519,939.57,0.00039723,120]
[394386960,1763516585740,939.57,0.00039723,120]
[394386961,1763516585843,500.0,0.00039723,30]
[394386962,1763516586226,503.90467087,0.00039723,30]
[394386963,1763516586435,939.57,0.00039723,120]
[394386964,1763516586545,939.57,0.00039723,120]
[394386965,1763516586783,939.57,0.00039723,120]
[394386966,1763516587031,939.57,0.00039723,120]
[394386967,1763516587273,939.57,0.00039723,120]
[394386968,1763516587511,939.57,0.00039723,120]
[394386969,1763516588386,939.57,0.00039723,120]
[394386970,1763516588999,939.57,0.00039723,120]
[394386971,1763516589253,939.57,0.00039723,120]
[394386972,1763516589489,939.57,0.00039723,120]
[394386973,1763516589724,939.6825098,0.00039723,120]
[394386974,1763516604414,618.9833767,0.00039723,30]
[394386975,1763516612777,500.0,0.00039723,30]
[394386976,1763516613007,500.0,0.00039723,30]
[394386977,1763516613387,500.0,0.00039723,30]
[394386978,1763516613614,498.45467809,0.00039723,30]
[394386980,1763516646374,2044.48,0.00039724,30]
[394386981,1763516646752,2044.48,0.00039724,30]
[394386982,1763516646847,2044.48,0.00039724,30]
[394386983,1763516646944,500.0,0.00039724,30]
[394386984,1763516647084,2044.48,0.00039724,30]
[394386985,1763516647224,500.0,0.00039724,30]
[394386986,1763516647421,2044.48,0.00039724,30]
[394386987,1763516647576,500.0,0.00039724,30]
[394386988,1763516647670,2044.48,0.00039724,30]
[394386989,1763516647834,619.35229277,0.00039724,30]
[394386990,1763516648125,2044.48,0.00039724,30]
[394386991,1763516648397,2044.48,0.00039724,30]
[394386992,1763516648657,2044.48,0.00039724,30]
[394386993,1763516648911,2044.48,0.00039724,30]
[394386994,1763516649148,2044.48,0.00039724,120]
[394386995,1763516649402,2044.48,0.00039724,120]
[394386996,1763516649686,2044.48,0.00039724,120]
[394386997,1763516649922,2044.48,0.00039724,120]
[394386998,1763516650155,2044.48,0.00039724,120]
[394386999,1763516650396,2044.48,0.00039724,120]
[394387000,1763516650662,2044.48,0.00039724,120]
[394387001,1763516650907,2044.48,0.00039724,120]
[394387002,1763516651184,2044.48,0.00039724,120]
[394387003,1763516651417,2044.48,0.00039724,120]
[394387004,1763516651655,2044.48,0.00039724,120]
[394387005,1763516651896,2044.48,0.00039724,120]
[394387006,1763516652252,2044.48,0.00039724,120]
[394387007,1763516652494,2044.54228005,0.00039724,120]
[394387008,1763516657717,321.28982431,0.00039724,30]
[394387009,1763516660573,500.0,0.00039724,30]
[394387010,1763516661031,500.0,0.00039724,30]
[394387011,1763516661343,330.24612944,0.00039724,30]
[394387012,1763516661506,708.0,0.00039724,30]
[394387013,1763516661831,708.0,0.00039724,30]
[394387014,1763516662069,708.0,0.00039724,30]
[394387015,1763516662310,708.0,0.00039724,30]
[394387016,1763516662627,708.0,0.00039724,30]
[394387017,1763516662871,708.0,0.00039724,30]
[394387018,1763516663113,708.0,0.00039724,30]
[394387019,1763516663352,708.0,0.00039724,30]
[394387020,1763516663594,708.0,0.00039724,30]
[394387021,1763516663843,708.0,0.00039724,30]
[394387022,1763516664090,708.0,0.00039724,120]
[394387023,1763516664448,708.0,0.00039724,120]
[394387024,1763516664794,708.0,0.00039724,120]
[394387025,1763516665208,708.0,0.00039724,120]
[394387026,1763516665333,708.0,0.00039724,120]
[394387027,1763516665675,708.0,0.00039724,120]
[394387028,1763516666014,708.0,0.00039724,120]
[394387029,1763516666322,708.0,0.00039724,120]
[394387030,1763516666571,708.0,0.00039724,120]
[394387031,1763516666973,708.0,0.00039724,120]
[394387032,1763516667232,708.0,0.00039724,120]
[394387033,1763516667491,708.0,0.00039724,120]
[394387034,1763516667829,708.0,0.00039724,120]
[394387035,1763516668068,708.22468113,0.00039724,120]
[394387036,1763516688183,1000.0,0.00039724,120]
[394387037,1763516688864,1000.0,0.00039724,120]
[394387038,1763516689384,1000.0,0.00039724,120]
[394387039,1763516689758,1000.0,0.00039724,120]
[394387040,1763516690208,1000.0,0.00039724,120]
[394387041,1763516748831,1000.0,0.00016,3]
[394387042,1763516751199,151.85,0.00039724,120]
[394387043,1763516790939,-266.2119629,0.00013699,2]
[394387044,1763516790987,-121.81420913,0.00013968,2]
[394387045,1763516875837,233.17875951,0.00039724,30]
[394387046,1763516886015,519.67207876,0.00039724,30]
[394387047,1763516901745,500.0,0.00039724,30]
[394387048,1763516901985,164.38872251,0.00039724,30]
[394387049,1763516917407,500.0,0.00039724,30]
[394387050,1763516917690,424.04955826,0.00039724,30]
[394387051,1763516929598,426.97360992,0.00039724,30]
[394387052,1763516956081,-115.65948273,0.00013968,2]
[394387053,1763516956335,-164.52089245,0.00014521,2]
[394387054,1763516958219,-351.01278784,0.00014521,2]
[394387055,1763516961152,-739.48452048,0.00014521,2]
[394387056,1763516962985,-300.0,0.00014521,2]
[394387057,1763516967870,-247.09279327,0.00014521,2]
[394387058,1763516970121,-307.09728476,0.00014521,2]
[394387059,1763516973837,-479.54642108,0.00014521,2]
[394387060,1763516975404,-181.88495492,0.00014521,2]
[394387061,1763516977558,-171.83081564,0.00014521,2]
[394387062,1763516978948,7803.3380573,0.00014379,2]
[394387063,1763516985200,-531.26706152,0.00014521,2]
[394387064,1763516988614,-345.2844067,0.00014521,2]
[394387065,1763516991868,-392.70515437,0.00014521,2]
[394387066,1763516994671,-211.8912201,0.00014521,2]
[394387067,1763516997370,1106.0,0.000145,2]
[394387068,1763516998219,-516.48784597,0.00014521,2]
[394387069,1763516999034,-349.0557126,0.00014521,2]
[394387070,1763516999078,-392.5605175,0.00014521,2]
[394387071,1763516999822,-387.51183085,0.00014521,2]
[394387072,1763517001978,-1478.18377355,0.00014521,2]
[394387073,1763517002001,-7043.6424529,0.00014521,2]
[394387074,1763517008323,-1200.0,0.0001452,2]
[394387075,1763517008353,-216.1187004,0.00014535,2]
[394387076,1763517008383,-1000.0,0.00014776,2]
[394387077,1763517008412,-300.0,0.00014818,2]
[394387078,1763517008441,-300.0,0.00014818,2]
[394387079,1763517008471,-1319.2748022,0.00014819,2]
[394387080,1763517008606,-1329.2229948,0.00014819,2]
[394387081,1763517012095,129.6658104,0.00014,2]
[394387082,1763517015738,-243.54353299,0.00014,2]
[394387083,1763517017324,-780.36190651,0.00014,2]
[394387084,1763517018801,-231.24014149,0.00014,2]
[394387085,1763517021598,-320.45531104,0.00014,2]
[394387086,1763517022960,1060.9,0.00032877,120]
[394387087,1763517023035,-641.27235726,0.00014,2]
[394387088,1763517024632,-160.43527447,0.00014,2]
[394387089,1763517027952,-300.0,0.00014,2]
[394387090,1763517029602,-329.73489519,0.00014,2]
[394387136,1763517032088,-1123.02642622,0.00014,2]
[394387138,1763517032100,-521.21905193,0.00014,2]
[394387140,1763517032112,-857.16019728,0.00014,2]
[394387144,1763517032140,-19394.88509522,0.00014,2]
[394387146,1763517032152,-197.894982,0.00015068,2]
[394387149,1763517032163,-800.0,0.00015068,2]
[394387152,1763517032173,-1559.0,0.00015546,2]
[394387155,1763517032182,-2251.83879319,0.00015654,2]
[394387158,1763517032192,-2617.01114033,0.00015687,2]
[394387161,1763517032202,-231.45881984,0.00015731,2]
[394387166,1763517032217,-68.54118016,0.00015731,2]
[394387169,1763517032227,-45530.7543035,0.00015732,2]
[394387586,1763517039182,-263.91221114,0.00013999,2]
[394387588,1763517039195,-500.0,0.00013999,2]
[394387590,1763517039208,-500.0,0.00013999,2]
[394387592,1763517039219,-500.0,0.00013999,2]
[394387594,1763517039231,-500.0,0.00013999,2]
[394387597,1763517039246,-500.0,0.00013999,2]
[394387599,1763517039257,-500.0,0.00013999,2]
[394387601,1763517039270,-500.0,0.00013999,2]
[394387603,1763517039283,-499.6240027,0.00013999,2]
[394387605,1763517039298,-500.0,0.00013999,2]
[394387608,1763517039311,-4469.2456965,0.00015732,2]
[394387610,1763517039323,-9834.7925549,0.00015734,2]
[394387612,1763517039336,-265.3581508,0.00015734,2]
[394387614,1763517039346,-1648.0,0.00015736,2]
[394387616,1763517039357,-810504.87411671,0.00015772,2]
[394387633,1763517039522,-2000.0,0.00015772,2]
[394387636,1763517039535,-5000.0,0.00015772,2]
[394387736,1763517040671,-3e-08,0.00015772,2]
[394387856,1763517046426,-72495.12588326,0.00015772,2]
[394387857,1763517046436,-756.88796673,0.00015776,2]
[394387858,1763517046445,-310.65755444,0.00015776,2]
[394387859,1763517046456,-259.70454726,0.00015777,2]
[394387860,1763517046466,-1559.0,0.00015792,2]
[394387861,1763517046475,-1000.0,0.000158,2]
[394387862,1763517046484,-1559.0,0.00015827,2]
[394387863,1763517046494,-500.0,0.00015873,2]
[394387864,1763517046504,-500.0,0.00015873,2]
[394387865,1763517046513,-500.0,0.00015873,2]
[394387866,1763517046522,-500.0,0.00015873,2]
[394387867,1763517046532,-500.0,0.00015873,2]
[394387868,1763517046541,-500.0,0.00015873,2]
[394387869,1763517046550,-212.21361508,0.00015873,2]
[394387870,1763517046559,-500.0,0.00015873,2]
[394387871,1763517046568,-500.0,0.00015873,2]
[394387872,1763517046578,-500.0,0.00015873,2]
[394387873,1763517046589,-500.0,0.00015873,2]
[394387874,1763517046599,-502.36956949,0.00015873,2]
[394387875,1763517046608,-500.0,0.00015873,2]
[394387876,1763517046617,-500.0,0.00015873,2]
[394387877,1763517046626,-500.0,0.00015873,2]
[394387878,1763517046635,-500.0,0.00015873,2]
[394387879,1763517046644,-599.24325479,0.00015873,2]
[394387880,1763517046653,-500.0,0.00015873,2]
[394387881,1763517046662,-500.0,0.00015873,2]
[394387882,1763517046673,-500.0,0.00015873,2]
[394387883,1763517046692,-209.89193882,0.00015876,2]
[394387884,1763517046702,-500.0,0.00015876,2]
[394387885,1763517046711,-209.40437684,0.00015881,2]
[394387886,1763517046720,-426.017,0.00015888,2]
[394387887,1763517046730,-183.731,0.00015888,2]
[394387888,1763517046741,-1559.0,0.00015889,2]
[394387889,1763517046751,-280.2189564,0.00015968,2]
[394387890,1763517046761,-1680.0,0.00015972,2]
[394387891,1763517046771,-500.0,0.00015973,2]
[394387892,1763517046781,-259.0,0.00015987,2]
[394387893,1763517046791,-100000.0,0.0001599,2]
[394387894,1763517046800,-214.53071672,0.00016,2]
[394387895,1763517046809,-259.0,0.00016059,2]
[394387896,1763517046819,-500.0,0.0001615,2]
[394387897,1763517046828,-1600.0,0.00016164,2]
[394387898,1763517046837,-1000.0,0.000162,2]
[394387899,1763517046846,-261.0,0.0001622,2]
[394387900,1763517046855,-259.0,0.00016236,2]
[394387901,1763517046865,-561.0,0.00016237,2]
[394387902,1763517046875,-152.78780627,0.00016237,2]
[394387903,1763517046885,-561.0,0.00016264,2]
[394387904,1763517046894,-561.0,0.00016292,2]
[394387905,1763517046903,-561.0,0.00016319,2]
[394387906,1763517046912,-154.19,0.00016338,2]
[394387907,1763517046921,-561.0,0.00016347,2]
[394387908,1763517046930,-561.0,0.00016374,2]
[394387909,1763517046939,-18783.61448217,0.00016375,2]
[394387910,1763517046949,-500.0,0.000164,2]
[394387911,1763517046958,-500.0,0.000164,2]
[394387912,1763517046967,-500.0,0.000164,2]
[394387913,1763517046976,-500.0,0.000164,2]
[394387914,1763517046986,-151.0,0.000164,2]
[394387915,1763517046995,-561.0,0.00016401,2]
[394387916,1763517047006,-1000.0,0.00016421,2]
[394387917,1763517047015,-1001.68587125,0.00016421,2]
[394387918,1763517047025,-921.30473254,0.00016421,2]
[394387919,1763517047035,-1000.0,0.00016421,2]
[394387920,1763517047045,-1002.36654671,0.00016421,2]
[394387921,1763517047055,-1000.0,0.00016421,2]
[394387922,1763517047066,-1000.0,0.00016421,2]
[394387923,1763517047075,-1000.0,0.00016421,2]
[394387924,1763517047084,-1000.0,0.00016421,2]
[394387925,1763517047095,-1000.0,0.00016421,2]
[394387926,1763517047105,-1000.0,0.00016421,2]
[394387927,1763517047114,-1000.0,0.00016421,2]
[394387928,1763517047123,-1000.0,0.00016421,2]
[394387929,1763517047132,-1000.0,0.00016421,2]
[394387930,1763517047141,-1000.0,0.00016421,2]
[394387931,1763517047151,-1000.0,0.00016421,2]
[394387932,1763517047160,-1000.0,0.00016421,2]
[394387933,1763517047170,-500.0,0.00016424,2]
[394387934,1763517047184,-500.0,0.00016427,2]
[394387935,1763517047194,-500.0,0.00016427,2]
[394387936,1763517047203,-500.0,0.00016427,2]
[394387937,1763517047212,-217.15233878,0.00016429,2]
[394387938,1763517047221,-561.0,0.00016429,2]
[394387939,1763517047230,-181.39867213,0.00016438,2]
[394387940,1763517047240,-151.0,0.00016438,2]
[394387941,1763517047249,-500.0,0.00016438,2]
[394387942,1763517047258,-500.0,0.00016438,2]
[394387943,1763517047267,-151.0,0.00016438,2]
[394387944,1763517047276,-202.100352,0.00016438,2]
[394387945,1763517047285,-202.100352,0.00016438,2]
[394387946,1763517047295,-202.100352,0.00016438,2]
[394387947,1763517047304,-202.100352,0.00016438,2]
[394387948,1763517047314,-219.9133515,0.00016438,2]
[394387949,1763517047323,-879.65340598,0.00016438,2]
[394387950,1763517047332,-1977.2409433,0.00016438,2]
[394387951,1763517047343,-500.0,0.00016438,2]
[394387952,1763517047353,-500.0,0.00016438,2]
[394387953,1763517047362,-500.0,0.00016438,2]
[394387954,1763517047372,-500.0,0.00016438,2]
[394387955,1763517047382,-500.0,0.00016438,2]
[394387956,1763517047392,-500.0,0.00016438,2]
[394387957,1763517047401,-500.0,0.00016438,2]
[394387958,1763517047410,-500.0,0.00016438,2]
[394387959,1763517047419,-621.83083258,0.00016438,2]
[394387960,1763517047428,-500.0,0.00016438,2]
[394387961,1763517047437,-500.0,0.00016438,2]
[394387962,1763517047446,-500.0,0.00016438,2]
[394387963,1763517047455,-500.0,0.00016438,2]
[394387964,1763517047463,-500.0,0.00016438,2]
[394387965,1763517047473,-500.0,0.00016438,2]
[394387966,1763517047482,-500.0,0.00016438,2]
[394387967,1763517047492,-500.0,0.00016438,2]
[394387968,1763517047501,-500.0,0.00016438,2]
[394387969,1763517047511,-500.0,0.00016438,2]
[394387970,1763517047520,-500.0,0.00016438,2]
[394387971,1763517047529,-500.0,0.00016438,2]
[394387972,1763517047538,-500.0,0.00016438,2]
[394387973,1763517047546,-500.0,0.00016438,2]
[394387974,1763517047556,-500.0,0.00016438,2]
[394387975,1763517047565,-500.0,0.00016438,2]
[394387976,1763517047573,-500.0,0.00016438,2]
[394387977,1763517047582,-500.0,0.00016438,2]
[394387978,1763517047593,-500.0,0.00016438,2]
[394387979,1763517047603,-500.0,0.00016438,2]
[394387980,1763517047617,-500.0,0.00016438,2]
[394387981,1763517047626,-500.0,0.00016438,2]
[394387982,1763517047635,-500.0,0.00016438,2]
[394387983,1763517047646,-500.0,0.00016438,2]
[394387984,1763517047656,-500.0,0.00016438,2]
[394387985,1763517047665,-500.0,0.00016438,2]
[394387986,1763517047675,-500.0,0.00016438,2]
[394387987,1763517047684,-500.0,0.00016438,2]
[394387988,1763517047693,-500.0,0.00016438,2]
[394387989,1763517047702,-500.0,0.00016438,2]
[394387990,1763517047711,-500.0,0.00016438,2]
[394387991,1763517047720,-500.0,0.00016438,2]
[394387992,1763517047730,-500.0,0.00016438,2]
[394387993,1763517047739,-500.0,0.00016438,2]
[394387994,1763517047750,-500.0,0.00016438,2]
[394387995,1763517047759,-500.0,0.00016438,2]
[394387996,1763517047769,-500.0,0.00016438,2]
[394387997,1763517047778,-500.0,0.00016438,2]
[394387998,1763517047787,-500.0,0.00016438,2]
[394387999,1763517047796,-500.0,0.00016438,2]
[394388000,1763517047806,-500.0,0.00016438,2]
[394388001,1763517047815,-500.0,0.00016438,2]
[394388002,1763517047824,-500.0,0.00016438,2]